[Event "36th Zalakaros Festival 2017"]
[Site "Zalakaros"]
[Date "2017.05.25"]
[Round "8"]
[White "Pultorak, Jan"]
[Black "Cuhendi, Sean Winshand"]
[Result "0-1"]
[ECO "A01"]
[WhiteElo "2303"]
[BlackElo "2407"]
[Annotator "NA"]
[PlyCount "44"]
[EventDate "2017.??.??"]
[EventType "swiss"]
[EventCountry "HUN"]
[SourceTitle "playchess.com"]
[Source "ChessBase"]
[SourceQuality "1"]
[TimeControl "40/5400+30:1800+30"]

1. b3 {[%emt 0:00:02]} d5 {[%emt 0:03:41]} 2. Bb2 {[%emt 0:00:06]} Bf5 {[%emt 0:00:06]} 3. e3 {[%emt 0:00:49]} Nf6 {[%emt 0:00:34]} 4. f4 {[%emt 0:00:16]} e6 {[%emt 0:01:42]} 5. Nf3 {[%emt 0:00:08]} Bd6 {[%emt 0:00:50]} 6. d3 {[%emt 0:02:20]} Nc6 {[%emt 0:01:29]} 7. Nbd2 {[%emt 0:02:45]} Qe7 {[%emt 0:00:31]} 8. Qe2 {[%emt 0:17:33]} e5 {[%emt 0:02:02]} 9. e4 {[%emt 0:00:54]} dxe4 {[%emt 0:08:33]} 10. dxe4 {[%emt 0:00:10]} Bg4 {[%emt 0:00:02]} 11. Qb5 {[%emt 0:10:49]} Bxf3 {[%emt 0:02:28]} 12. Qxb7 {[%emt 0:11:40]} O-O {[%emt 0:00:05]} 13. Qxc6 {[%emt 0:01:10]} Bh5 {[%emt 0:00:08]} 14. f5 {[%emt 0:09:28]} Rad8 {[%emt 0:13:27]} 15. Be2 {[%emt 0:12:18]} Bb4 {[%emt 0:01:52]} 16. c3 {[%emt 0:01:26]} Bc5 {[%emt 0:01:31]} 17. b4 {[%emt 0:07:07]} Bf2+ {[%emt 0:00:29]} 18. Kd1 {[%emt 0:01:01]} Rd6 {[%emt 0:00:37]} 19. Qc4 {[%emt 0:00:38]} Qd7 {[%emt 0:00:45]} 20. Bc1 {[%emt 0:00:40]} Rd8 {[%emt 0:00:15]} 21. Kc2 {[%emt 0:01:36]} Rxd2+ {[%emt 0:00:08]} 22. Bxd2 {[%emt 0:00:08]} Qxd2+ {[%emt 0:00:03]} 0-1

[Event "36th Zalakaros Festival 2017"]
[Site "Zalakaros"]
[Date "2017.05.25"]
[Round "8"]
[White "Sadhwani, Raunak"]
[Black "Gara, Anita"]
[Result "1/2-1/2"]
[ECO "B32"]
[WhiteElo "2298"]
[BlackElo "2373"]
[Annotator "NA"]
[PlyCount "133"]
[EventDate "2017.??.??"]
[EventType "swiss"]
[EventCountry "HUN"]
[SourceTitle "playchess.com"]
[Source "ChessBase"]
[SourceQuality "1"]
[TimeControl "40/5400+30:1800+30"]

1. e4 {[%emt 0:00:05]} c5 {[%emt 0:00:33]} 2. Nf3 {[%emt 0:00:09]} Nc6 {[%emt 0:00:04]} 3. d4 {[%emt 0:00:04]} cxd4 {[%emt 0:00:03]} 4. Nxd4 {[%emt 0:00:08]} e5 {[%emt 0:00:03]} 5. Nb5 {[%emt 0:00:08]} d6 {[%emt 0:00:05]} 6. N1c3 {[%emt 0:00:10]} a6 {[%emt 0:00:13]} 7. Na3 {[%emt 0:00:05]} Be7 {[%emt 0:00:19]} 8. Nc4 {[%emt 0:01:08]} b5 {[%emt 0:00:29]} 9. Ne3 {[%emt 0:00:02]} Nf6 {[%emt 0:00:26]} 10. Bd3 {[%emt 0:00:33]} O-O {[%emt 0:00:38]} 11. O-O {[%emt 0:00:10]} Rb8 {[%emt 0:00:53]} 12. a4 {[%emt 0:02:27]} Nb4 {[%emt 0:02:16]} 13. axb5 {[%emt 0:02:23]} axb5 {[%emt 0:00:40]} 14. Be2 {[%emt 0:08:10]} Be6 {[%emt 0:00:25]} 15. Ncd5 {[%emt 0:03:11]} Nbxd5 {[%emt 0:01:48]} 16. exd5 {[%emt 0:00:12]} Bd7 {[%emt 0:00:05]} 17. c3 {[%emt 0:02:39]} Ne4 {[%emt 0:08:54]} 18. Nc2 {[%emt 0:01:53]} f5 {[%emt 0:02:59]} 19. f3 {[%emt 0:17:09]} Nc5 {[%emt 0:04:31]} 20. Nb4 {[%emt 0:03:49]} Qc8 {[%emt 0:13:28]} 21. f4 {[%emt 0:03:03]} Bd8 {[%emt 0:05:26]} 22. Kh1 {[%emt 0:03:42]} Bb6 {[%emt 0:03:18]} 23. Bf3 {[%emt 0:02:33]} Ne4 {[%emt 0:09:55]} 24. fxe5 {[%emt 0:07:05]} dxe5 {[%emt 0:01:49]} 25. Bxe4 {[%emt 0:04:05]} fxe4 {[%emt 0:00:06]} 26. Bg5 {[%emt 0:06:15]} Qc4 {[%emt 0:04:34]} 27. Be7 {[%emt 0:03:11]} Rxf1+ {[%emt 0:07:46]} 28. Qxf1 {[%emt 0:00:05]} e3 {[%emt 0:00:53]} 29. Qxc4 {[%emt 0:02:46]} bxc4 {[%emt 0:01:23]} 30. Re1 {[%emt 0:01:43]} Ra8 {[%emt 0:08:53]} 31. h3 {[%emt 0:00:59]} h6 {[%emt 0:03:53]} 32. Bd6 {[%emt 0:08:14]} Bf5 {[%emt 0:02:51]} 33. Bxe5 {[%emt 0:01:00]} Re8 {[%emt 0:01:10]} 34. Bg3 {[%emt 0:04:16]} e2 {[%emt 0:04:11]} 35. d6 {[%emt 0:01:40]} Kf7 {[%emt 0:02:52]} 36. Nc6 {[%emt 0:07:14]} Re4 {[%emt 0:02:56]} 37. Ne5+ {[%emt 0:01:34]} Ke6 {[%emt 0:00:45]} 38. Nf3 {[%emt 0:00:36]} Kd5 {[%emt 0:04:37]} 39. Ra1 {[%emt 0:03:28]} Re8 {[%emt 0:00:35]} 40. Ra6 {[%emt 0:00:00]} Bc5 {[%emt 0:02:02]} 41. Ra5 {[%emt 0:06:04]} Kc6 {[%emt 0:03:47]} 42. Kh2 {[%emt 0:02:16]} Kb6 {[%emt 0:02:36]} 43. Ra1 {[%emt 0:01:11]} Rd8 {[%emt 0:04:40]} 44. Ne5 {[%emt 0:16:44]} Kb5 {[%emt 0:03:13]} 45. Re1 {[%emt 0:01:14]} Bd3 {[%emt 0:00:22]} 46. b3 {[%emt 0:00:24]} Bxd6 {[%emt 0:07:46]} 47. bxc4+ {[%emt 0:00:43]} Bxc4 {[%emt 0:00:04]} 48. Nxc4 {[%emt 0:00:16]} Kxc4 {[%emt 0:00:24]} 49. Bxd6 {[%emt 0:00:23]} Rxd6 {[%emt 0:00:11]} 50. Rxe2 {[%emt 0:00:01]} Kxc3 {[%emt 0:00:17]} 51. Re7 {[%emt 0:00:04]} Rg6 {[%emt 0:03:31]} 52. Rd7 {[%emt 0:00:01]} Kc4 {[%emt 0:00:10]} 53. g4 {[%emt 0:00:04]} Kc5 {[%emt 0:00:12]} 54. Kg3 {[%emt 0:00:01]} Kc6 {[%emt 0:00:03]} 55. Ra7 {[%emt 0:01:15]} Kd5 {[%emt 0:00:46]} 56. h4 {[%emt 0:00:22]} Ke5 {[%emt 0:01:06]} 57. Ra5+ {[%emt 0:00:09]} Ke6 {[%emt 0:01:34]} 58. Ra7 {[%emt 0:00:06]} Ke5 {[%emt 0:00:52]} 59. Rf7 {[%emt 0:00:13]} Ke6 {[%emt 0:00:12]} 60. Rb7 {[%emt 0:00:05]} Ke5 {[%emt 0:00:13]} 61. Ra7 {[%emt 0:00:12]} Ke6 {[%emt 0:00:25]} 62. Kf4 {[%emt 0:00:42]} Rf6+ {[%emt 0:03:05]} 63. Ke4 {[%emt 0:00:14]} Rf7 {[%emt 0:00:36]} 64. Ra6+ {[%emt 0:00:13]} Ke7 {[%emt 0:00:08]} 65. Ra7+ {[%emt 0:00:24]} Ke6 {[%emt 0:00:08]} 66. Ra6+ {[%emt 0:00:26]} Ke7 {[%emt 0:00:04]} 67. Ke5 {[%emt 0:00:43]} 1/2-1/2

[Event "36th Zalakaros Festival 2017"]
[Site "Zalakaros"]
[Date "2017.05.25"]
[Round "8"]
[White "Risting, Eivind Olav"]
[Black "Krstulovic, Alex"]
[Result "1-0"]
[ECO "C80"]
[WhiteElo "2297"]
[BlackElo "2280"]
[Annotator "NA"]
[PlyCount "93"]
[EventDate "2017.??.??"]
[EventType "swiss"]
[EventCountry "HUN"]
[SourceTitle "playchess.com"]
[Source "ChessBase"]
[SourceQuality "1"]
[TimeControl "40/5400+30:1800+30"]

1. e4 {[%emt 0:02:00]} e5 {[%emt 0:00:37]} 2. Nf3 {[%emt 0:00:24]} Nc6 {[%emt 0:00:12]} 3. Bb5 {[%emt 0:00:20]} a6 {[%emt 0:00:11]} 4. Ba4 {[%emt 0:00:05]} Nf6 {[%emt 0:00:37]} 5. O-O {[%emt 0:00:26]} Nxe4 {[%emt 0:00:14]} 6. Re1 {[%emt 0:01:25]} Nc5 {[%emt 0:00:29]} 7. Bxc6 {[%emt 0:04:12]} dxc6 {[%emt 0:00:55]} 8. Nxe5 {[%emt 0:05:00]} Be7 {[%emt 0:05:52]} 9. d4 {[%emt 0:04:38]} Nd7 {[%emt 0:06:06]} 10. Qe2 {[%emt 0:05:15]} Nxe5 {[%emt 0:11:32]} 11. Qxe5 {[%emt 0:02:44]} Be6 {[%emt 0:00:28]} 12. Qxg7 {[%emt 0:05:53]} Bf6 {[%emt 0:01:26]} 13. Qh6 {[%emt 0:03:05]} Qxd4 {[%emt 0:07:47]} 14. Bg5 {[%emt 0:09:56]} Bxg5 {[%emt 0:12:33]} 15. Qxg5 {[%emt 0:00:06]} h6 {[%emt 0:00:17]} 16. Qe5 {[%emt 0:11:53]} Qxe5 {[%emt 0:05:17]} 17. Rxe5 {[%emt 0:00:03]} O-O-O {[%emt 0:00:35]} 18. Nc3 {[%emt 0:00:19]} Rd2 {[%emt 0:06:04]} 19. Rc1 {[%emt 0:00:55]} Rg8 {[%emt 0:04:27]} 20. Kf1 {[%emt 0:02:17]} b6 {[%emt 0:06:04]} 21. b3 {[%emt 0:01:46]} Rg6 {[%emt 0:02:48]} 22. Re2 {[%emt 0:05:24]} Rd4 {[%emt 0:02:32]} 23. Re4 {[%emt 0:02:46]} c5 {[%emt 0:01:53]} 24. f3 {[%emt 0:03:04]} Rd2 {[%emt 0:06:39]} 25. Re2 {[%emt 0:00:53]} Rd4 {[%emt 0:00:45]} 26. Rd1 {[%emt 0:01:05]} Bf5 {[%emt 0:06:11]} 27. Ke1 {[%emt 0:08:07]} Kb7 {[%emt 0:03:23]} 28. Nd5 {[%emt 0:04:49]} Rd6 {[%emt 0:01:27]} 29. Ne3 {[%emt 0:01:41]} Bg6 {[%emt 0:00:48]} 30. Red2 {[%emt 0:02:30]} b5 {[%emt 0:00:18]} 31. c3 {[%emt 0:01:11]} Rxd2 {[%emt 0:00:45]} 32. Rxd2 {[%emt 0:00:02]} Kc6 {[%emt 0:01:04]} 33. f4 {[%emt 0:01:30]} Be4 {[%emt 0:02:06]} 34. Ng4 {[%emt 0:01:42]} Rxd2 {[%emt 0:01:15]} 35. Kxd2 {[%emt 0:00:03]} Bxg2 {[%emt 0:00:10]} 36. Nxh6 {[%emt 0:00:49]} Kd5 {[%emt 0:01:26]} 37. Nxf7 {[%emt 0:01:36]} Ke4 {[%emt 0:00:06]} 38. Ng5+ {[%emt 0:00:38]} Kxf4 {[%emt 0:03:07]} 39. Ne6+ {[%emt 0:00:07]} Ke5 {[%emt 0:00:09]} 40. Nxc5 {[%emt 0:00:00]} a5 {[%emt 0:00:25]} 41. Ke3 {[%emt 0:07:43]} Bd5 {[%emt 0:12:05]} 42. Nd3+ {[%emt 0:01:39]} Kd6 {[%emt 0:00:31]} 43. Kd4 {[%emt 0:00:20]} a4 {[%emt 0:12:46]} 44. bxa4 {[%emt 0:00:34]} bxa4 {[%emt 0:00:54]} 45. a3 {[%emt 0:00:18]} Bf7 {[%emt 0:00:23]} 46. Nc5 {[%emt 0:00:45]} Bb3 {[%emt 0:00:15]} 47. Nxb3 {[%emt 0:01:33] Kd5+ Ke4+} 1-0

[Event "36th Zalakaros Festival 2017"]
[Site "Zalakaros"]
[Date "2017.05.25"]
[Round "8"]
[White "Injac, Teodora"]
[Black "Jakab, Bela"]
[Result "1/2-1/2"]
[ECO "A05"]
[WhiteElo "2296"]
[BlackElo "2216"]
[Annotator "NA"]
[PlyCount "50"]
[EventDate "2017.??.??"]
[EventType "swiss"]
[EventCountry "HUN"]
[SourceTitle "playchess.com"]
[Source "ChessBase"]
[SourceQuality "1"]
[TimeControl "40/5400+30:1800+30"]

1. Nf3 {[%emt 0:00:12]} Nf6 {[%emt 0:00:13]} 2. c4 {[%emt 0:00:04]} e6 {[%emt 0:00:10]} 3. Nc3 {[%emt 0:00:08]} d5 {[%emt 0:00:42]} 4. d4 {[%emt 0:00:18]} Be7 {[%emt 0:00:21]} 5. cxd5 {[%emt 0:00:24]} exd5 {[%emt 0:00:11]} 6. Bg5 {[%emt 0:00:04]} c6 {[%emt 0:01:04]} 7. Qc2 {[%emt 0:01:10]} O-O {[%emt 0:01:45]} 8. e3 {[%emt 0:00:06]} h6 {[%emt 0:02:19]} 9. Bh4 {[%emt 0:04:02]} Ne4 {[%emt 0:06:04]} 10. Bxe7 {[%emt 0:00:15]} Qxe7 {[%emt 0:00:06]} 11. Bd3 {[%emt 0:00:20]} Re8 {[%emt 0:01:22]} 12. O-O {[%emt 0:00:21]} Bf5 {[%emt 0:03:42]} 13. Rab1 {[%emt 0:11:12]} Nd7 {[%emt 0:02:06]} 14. b4 {[%emt 0:00:57]} Nxc3 {[%emt 0:03:49]} 15. Qxc3 {[%emt 0:00:15]} Be4 {[%emt 0:00:07]} 16. Nd2 {[%emt 0:11:55]} Qg5 {[%emt 0:03:57]} 17. Bxe4 {[%emt 0:04:46]} dxe4 {[%emt 0:00:08]} 18. Nb3 {[%emt 0:03:29]} Re6 {[%emt 0:04:26]} 19. Nc5 {[%emt 0:05:17]} Rg6 {[%emt 0:03:10]} 20. g3 {[%emt 0:00:08]} Nf6 {[%emt 0:02:03]} 21. Nxb7 {[%emt 0:18:26]} Qg4 {[%emt 0:03:31]} 22. Qd2 {[%emt 0:08:40]} Nh7 {[%emt 0:01:38]} 23. Qd1 {[%emt 0:07:51]} Qh3 {[%emt 0:05:04]} 24. f4 {[%emt 0:02:01]} Rxg3+ {[%emt 0:00:24]} 25. hxg3 {[%emt 0:00:06]} Qxg3+ {[%emt 0:00:03]} 1/2-1/2

[Event "36th Zalakaros Festival 2017"]
[Site "Zalakaros"]
[Date "2017.05.25"]
[Round "8"]
[White "Chovan, Milan"]
[Black "Terbe, Julianna"]
[Result "1/2-1/2"]
[ECO "D10"]
[WhiteElo "2288"]
[BlackElo "2258"]
[Annotator "NA"]
[PlyCount "113"]
[EventDate "2017.??.??"]
[EventType "swiss"]
[EventCountry "HUN"]
[SourceTitle "playchess.com"]
[Source "ChessBase"]
[SourceQuality "1"]
[TimeControl "40/5400+30:1800+30"]

1. d4 {[%emt 0:00:05]} d5 {[%emt 0:00:44]} 2. c4 {[%emt 0:00:06]} c6 {[%emt 0:00:04]} 3. Nc3 {[%emt 0:00:08]} Nf6 {[%emt 0:00:14]} 4. e3 {[%emt 0:00:17]} g6 {[%emt 0:01:40]} 5. Nf3 {[%emt 0:01:13]} Bg7 {[%emt 0:00:20]} 6. Be2 {[%emt 0:01:24]} O-O {[%emt 0:00:09]} 7. O-O {[%emt 0:00:22]} Be6 {[%emt 0:00:48]} 8. cxd5 {[%emt 0:02:07]} cxd5 {[%emt 0:00:11]} 9. Qb3 {[%emt 0:00:18]} Qb6 {[%emt 0:00:07]} 10. Qxb6 {[%emt 0:22:12]} axb6 {[%emt 0:00:11]} 11. b3 {[%emt 0:00:07]} Nc6 {[%emt 0:10:53]} 12. Na4 {[%emt 0:01:02]} Nd7 {[%emt 0:03:13]} 13. h3 {[%emt 0:05:12]} h6 {[%emt 0:03:56]} 14. Bd2 {[%emt 0:01:33]} g5 {[%emt 0:18:27]} 15. Bb5 {[%emt 0:05:11]} Bf5 {[%emt 0:05:55]} 16. Rac1 {[%emt 0:02:04]} Rfc8 {[%emt 0:02:39]} 17. Bc3 {[%emt 0:04:46]} f6 {[%emt 0:03:12]} 18. Nd2 {[%emt 0:03:38]} e6 {[%emt 0:07:28]} 19. f3 {[%emt 0:01:13]} Bg6 {[%emt 0:05:50]} 20. e4 {[%emt 0:04:09]} f5 {[%emt 0:01:13]} 21. e5 {[%emt 0:00:08]} Bf8 {[%emt 0:04:01]} 22. Nb1 {[%emt 0:04:14]} Rc7 {[%emt 0:04:04]} 23. a3 {[%emt 0:03:32]} f4 {[%emt 0:00:12]} 24. b4 {[%emt 0:01:09]} Rac8 {[%emt 0:01:06]} 25. Nd2 {[%emt 0:01:52]} Be8 {[%emt 0:04:11]} 26. Nb3 {[%emt 0:00:55]} Ncb8 {[%emt 0:13:08]} 27. Bb2 {[%emt 0:02:19]} Rxc1 {[%emt 0:04:33]} 28. Rxc1 {[%emt 0:00:09]} Rxc1+ {[%emt 0:00:03]} 29. Bxc1 {[%emt 0:00:14]} Bg6 {[%emt 0:01:09]} 30. h4 {[%emt 0:02:24]} Be7 {[%emt 0:01:41]} 31. hxg5 {[%emt 0:02:54]} hxg5 {[%emt 0:00:01]} 32. g3 {[%emt 0:02:05]} fxg3 {[%emt 0:00:06]} 33. Kg2 {[%emt 0:01:40]} Nc6 {[%emt 0:01:13]} 34. Be3 {[%emt 0:00:11]} Kf7 {[%emt 0:00:57]} 35. Kxg3 {[%emt 0:00:24]} Bf5 {[%emt 0:00:47]} 36. Nc1 {[%emt 0:04:54]} Bd8 {[%emt 0:00:51]} 37. Ne2 {[%emt 0:06:35]} Nf8 {[%emt 0:01:14]} 38. Kf2 {[%emt 0:00:53]} Ng6 {[%emt 0:02:09]} 39. Nac3 {[%emt 0:02:23]} Nh4 {[%emt 0:00:40]} 40. Ng3 {[%emt 0:00:00]} Bg6 {[%emt 0:00:31]} 41. Be2 {[%emt 0:02:24]} Na7 {[%emt 0:06:47]} 42. Bf1 {[%emt 0:11:42]} Nf5 {[%emt 0:01:14]} 43. Nxf5 {[%emt 0:00:08]} Bxf5 {[%emt 0:00:09]} 44. Be2 {[%emt 0:00:38]} Be7 {[%emt 0:04:53]} 45. Kg3 {[%emt 0:00:21]} Kg6 {[%emt 0:02:52]} 46. Nb5 {[%emt 0:02:19]} Nc8 {[%emt 0:01:12]} 47. Bf1 {[%emt 0:01:44]} Kf7 {[%emt 0:03:50]} 48. Bh3 {[%emt 0:01:42]} Kg6 {[%emt 0:00:43]} 49. Bg4 {[%emt 0:01:13]} Bd8 {[%emt 0:02:13]} 50. Bf2 {[%emt 0:03:27]} Kf7 {[%emt 0:02:28]} 51. Bh5+ {[%emt 0:01:05]} Ke7 {[%emt 0:01:39]} 52. Be3 {[%emt 0:02:41]} Kd7 {[%emt 0:00:08]} 53. Nc3 {[%emt 0:01:13]} Na7 {[%emt 0:02:52]} 54. Bg4 {[%emt 0:04:49]} Kc6 {[%emt 0:02:41]} 55. Bh5 {[%emt 0:00:02]} Kd7 {[%emt 0:00:10]} 56. Bg4 {[%emt 0:01:48]} Kc6 {[%emt 0:00:01]} 57. Bh5 {[%emt 0:01:09]} 1/2-1/2

[Event "36th Zalakaros Festival 2017"]
[Site "Zalakaros"]
[Date "2017.05.25"]
[Round "8"]
[White "Rakesh Kumar Jena"]
[Black "Szukics, Adam"]
[Result "0-1"]
[ECO "A05"]
[WhiteElo "2288"]
[BlackElo "2229"]
[Annotator "NA"]
[PlyCount "80"]
[EventDate "2017.??.??"]
[EventType "swiss"]
[EventCountry "HUN"]
[SourceTitle "playchess.com"]
[Source "ChessBase"]
[SourceQuality "1"]
[TimeControl "40/5400+30:1800+30"]

1. Nf3 {[%emt 0:01:14]} Nf6 {[%emt 0:01:55]} 2. g3 {[%emt 0:00:07]} d5 {[%emt 0:00:56]} 3. Bg2 {[%emt 0:00:02]} e6 {[%emt 0:01:42]} 4. O-O {[%emt 0:00:10]} Be7 {[%emt 0:00:02]} 5. c4 {[%emt 0:00:23]} O-O {[%emt 0:00:06]} 6. b3 {[%emt 0:03:17]} b6 {[%emt 0:00:12]} 7. Bb2 {[%emt 0:00:07]} Bb7 {[%emt 0:00:04]} 8. Ne5 {[%emt 0:02:56]} c5 {[%emt 0:01:06]} 9. Nc3 {[%emt 0:09:39]} Nbd7 {[%emt 0:16:58]} 10. f4 {[%emt 0:01:45]} Qc8 {[%emt 0:16:42]} 11. cxd5 {[%emt 0:06:22]} Nxe5 {[%emt 0:06:01]} 12. fxe5 {[%emt 0:02:05]} Nxd5 {[%emt 0:00:04]} 13. Ne4 {[%emt 0:02:20]} Qd7 {[%emt 0:07:10]} 14. e3 {[%emt 0:03:03]} Nb4 {[%emt 0:10:58]} 15. Nf6+ {[%emt 0:01:28]} Bxf6 {[%emt 0:00:45]} 16. exf6 {[%emt 0:01:05]} g6 {[%emt 0:00:18]} 17. Qg4 {[%emt 0:01:25]} h6 {[%emt 0:03:01]} 18. Bxb7 {[%emt 0:03:07]} Qxb7 {[%emt 0:00:19]} 19. e4 {[%emt 0:03:35]} Nd3 {[%emt 0:04:57]} 20. Bc3 {[%emt 0:00:45]} Rad8 {[%emt 0:01:25]} 21. Rf3 {[%emt 0:01:51]} Qc7 {[%emt 0:04:36]} 22. Re3 {[%emt 0:08:24]} b5 {[%emt 0:02:22]} 23. Rf1 {[%emt 0:07:02]} Kh7 {[%emt 0:00:05]} 24. e5 {[%emt 0:06:22]} b4 {[%emt 0:01:08]} 25. Ba1 {[%emt 0:00:10]} Rd5 {[%emt 0:03:09]} 26. Qe4 {[%emt 0:04:05]} Rfd8 {[%emt 0:02:44]} 27. g4 {[%emt 0:01:22]} Rd4 {[%emt 0:10:22]} 28. Bxd4 {[%emt 0:01:42]} Rxd4 {[%emt 0:00:01]} 29. Qa8 {[%emt 0:03:08]} Rd8 {[%emt 0:00:03]} 30. Qg2 {[%emt 0:02:26]} Rd4 {[%emt 0:00:51]} 31. Qe2 {[%emt 0:13:09]} c4 {[%emt 0:02:40]} 32. bxc4 {[%emt 0:08:07]} Qxc4 {[%emt 0:00:06]} 33. Rg3 a5 {[%emt 0:01:09]} 34. g5 {[%emt 0:03:33]} h5 {[%emt 0:00:58]} 35. Kh1 {[%emt 0:00:36]} Qd5+ {[%emt 0:01:15]} 36. Qf3 {[%emt 0:00:05]} Qxa2 {[%emt 0:01:03]} 37. Qb7 {[%emt 0:01:01]} Qd5+ {[%emt 0:00:31]} 38. Qxd5 {[%emt 0:00:01]} Rxd5 {[%emt 0:00:09]} 39. Re3 {[%emt 0:00:47]} b3 {[%emt 0:01:12]} 40. Rb1 {[%emt 0:00:00]} a4 {[%emt 0:00:44]} 0-1

[Event "36th Zalakaros Festival 2017"]
[Site "Zalakaros"]
[Date "2017.05.25"]
[Round "8"]
[White "Horvath, Dominik"]
[Black "Paschall, William M"]
[Result "1/2-1/2"]
[ECO "A04"]
[WhiteElo "2275"]
[BlackElo "2380"]
[Annotator "NA"]
[PlyCount "63"]
[EventDate "2017.??.??"]
[EventType "swiss"]
[EventCountry "HUN"]
[SourceTitle "playchess.com"]
[Source "ChessBase"]
[SourceQuality "1"]
[TimeControl "40/5400+30:1800+30"]

1. Nf3 {[%emt 0:00:02]} c5 {[%emt 0:01:35]} 2. c4 {[%emt 0:00:05]} Nc6 {[%emt 0:00:55]} 3. Nc3 {[%emt 0:00:06]} g6 {[%emt 0:00:53]} 4. e3 {[%emt 0:00:17]} Nf6 {[%emt 0:00:57]} 5. d4 {[%emt 0:00:10]} cxd4 {[%emt 0:00:58]} 6. exd4 {[%emt 0:00:12]} d5 {[%emt 0:00:14]} 7. cxd5 {[%emt 0:00:07]} Nxd5 {[%emt 0:00:15]} 8. Qb3 {[%emt 0:00:17]} e6 {[%emt 0:02:29]} 9. Bb5 {[%emt 0:02:16]} Bg7 {[%emt 0:01:35]} 10. O-O {[%emt 0:00:38]} O-O {[%emt 0:00:31]} 11. Bxc6 {[%emt 0:00:02]} bxc6 {[%emt 0:00:20]} 12. Na4 {[%emt 0:00:38]} Qd6 {[%emt 0:00:44]} 13. Bd2 {[%emt 0:03:41]} Rb8 {[%emt 0:00:55]} 14. Qc2 {[%emt 0:08:06]} Nb4 {[%emt 0:02:38]} 15. Bxb4 {[%emt 0:13:16]} Rxb4 {[%emt 0:01:43]} 16. a3 {[%emt 0:01:08]} Rb5 {[%emt 0:09:32]} 17. Rfd1 {[%emt 0:06:08]} Rf5 {[%emt 0:04:10]} 18. Qe4 {[%emt 0:05:56]} a5 {[%emt 0:16:59]} 19. Rac1 {[%emt 0:01:39]} Qb8 {[%emt 0:00:43]} 20. Qe2 {[%emt 0:07:18]} Qb5 {[%emt 0:12:15]} 21. Qxb5 {[%emt 0:16:19]} cxb5 {[%emt 0:01:11]} 22. Nc5 {[%emt 0:03:16]} Rd8 {[%emt 0:02:28]} 23. Kf1 {[%emt 0:03:52]} Rfd5 {[%emt 0:04:09]} 24. Ke2 {[%emt 0:00:18]} b4 {[%emt 0:03:24]} 25. axb4 {[%emt 0:02:14]} axb4 {[%emt 0:00:23]} 26. Ra1 {[%emt 0:06:16]} e5 {[%emt 0:10:56]} 27. dxe5 {[%emt 0:02:01]} Bxe5 {[%emt 0:00:28]} 28. Rxd5 {[%emt 0:01:18]} Rxd5 {[%emt 0:00:06]} 29. Nd3 {[%emt 0:01:13]} Bf6 {[%emt 0:05:41]} 30. Nxb4 {[%emt 0:02:39]} Rb5 {[%emt 0:01:12]} 31. Ra8 {[%emt 0:00:22]} Rxb4 {[%emt 0:00:30]} 32. Rxc8+ {[%emt 0:00:11]} 1/2-1/2

[Event "36th Zalakaros Festival 2017"]
[Site "Zalakaros"]
[Date "2017.05.25"]
[Round "8"]
[White "Sankalp Gupta"]
[Black "Arman, Deniz"]
[Result "1/2-1/2"]
[ECO "B98"]
[WhiteElo "2269"]
[BlackElo "2377"]
[Annotator "NA"]
[PlyCount "123"]
[EventDate "2017.??.??"]
[EventType "swiss"]
[EventCountry "HUN"]
[SourceTitle "playchess.com"]
[Source "ChessBase"]
[SourceQuality "1"]
[TimeControl "40/5400+30:1800+30"]

1. e4 {[%emt 0:00:53]} c5 {[%emt 0:01:18]} 2. Nf3 {[%emt 0:00:49]} d6 {[%emt 0:00:06]} 3. d4 {[%emt 0:00:04]} cxd4 {[%emt 0:00:08]} 4. Nxd4 {[%emt 0:00:03]} Nf6 {[%emt 0:00:08]} 5. Nc3 {[%emt 0:00:02]} a6 {[%emt 0:00:22]} 6. Bg5 {[%emt 0:00:03]} e6 {[%emt 0:01:16]} 7. f4 {[%emt 0:00:02]} Be7 {[%emt 0:00:46]} 8. Qe2 {[%emt 0:02:48]} h6 {[%emt 0:03:00]} 9. Bxf6 {[%emt 0:15:16]} Bxf6 {[%emt 0:00:08]} 10. O-O-O {[%emt 0:00:13]} Qa5 {[%emt 0:03:46]} 11. Qd2 {[%emt 0:08:52]} Qc7 {[%emt 0:12:07]} 12. g4 {[%emt 0:24:52]} Be7 {[%emt 0:02:51]} 13. Bg2 {[%emt 0:04:10]} Nc6 {[%emt 0:01:38]} 14. Nxc6 {[%emt 0:08:14]} bxc6 {[%emt 0:00:25]} 15. h4 {[%emt 0:02:56]} Rb8 {[%emt 0:01:30]} 16. g5 {[%emt 0:01:44]} h5 {[%emt 0:03:24]} 17. Bh3 {[%emt 0:04:33]} O-O {[%emt 0:10:47]} 18. f5 {[%emt 0:00:51]} exf5 {[%emt 0:20:31]} 19. exf5 {[%emt 0:02:08]} d5 {[%emt 0:00:29]} 20. Ne2 {[%emt 0:03:27]} Bd6 {[%emt 0:02:04]} 21. f6 {[%emt 0:10:10]} g6 {[%emt 0:00:26]} 22. Bxc8 {[%emt 0:02:44]} Rfxc8 {[%emt 0:00:29]} 23. Rh3 {[%emt 0:00:35]} Rb4 {[%emt 0:00:15]} 24. Kb1 {[%emt 0:02:12]} Rcb8 {[%emt 0:00:24]} 25. b3 {[%emt 0:00:31]} Qd7 {[%emt 0:02:00]} 26. Qd3 {[%emt 0:01:21]} Be5 {[%emt 0:00:13]} 27. Re3 {[%emt 0:02:15]} Qd6 {[%emt 0:00:24]} 28. Ng1 {[%emt 0:01:29]} Rd4 {[%emt 0:18:58]} 29. Qe2 {[%emt 0:00:02]} Rxd1+ {[%emt 0:00:12]} 30. Qxd1 {[%emt 0:00:02]} Bg3 {[%emt 0:00:49]} 31. Nf3 {[%emt 0:00:43]} Qf8 {[%emt 0:08:56]} 32. Qe2 {[%emt 0:01:01]} a5 {[%emt 0:02:46]} 33. Nd4 {[%emt 0:00:51]} Bxh4 {[%emt 0:00:47]} 34. Nxc6 {[%emt 0:00:08]} Bxg5 {[%emt 0:01:13]} 35. Re5 {[%emt 0:00:44]} Bxf6 {[%emt 0:02:43]} 36. Nxb8 {[%emt 0:00:01]} Bxe5 {[%emt 0:00:38]} 37. Qxe5 {[%emt 0:00:02]} f6 {[%emt 0:00:31]} 38. Qxd5+ {[%emt 0:00:21]} Kg7 {[%emt 0:00:16]} 39. Nc6 {[%emt 0:00:57]} h4 {[%emt 0:00:27]} 40. Nd4 {[%emt 0:00:00]} Qe7 {[%emt 0:00:47]} 41. Ne6+ {[%emt 0:03:07]} Kh6 {[%emt 0:00:27]} 42. Qe4 {[%emt 0:18:20]} Qb4 {[%emt 0:02:01]} 43. Nd4 {[%emt 0:09:11]} g5 {[%emt 0:07:55]} 44. Nf5+ {[%emt 0:00:31]} Kh5 {[%emt 0:02:22]} 45. Ng7+ {[%emt 0:00:02]} Kh6 {[%emt 0:00:07]} 46. Nf5+ {[%emt 0:00:01]} Kh5 {[%emt 0:00:04]} 47. Qe2+ {[%emt 0:03:25]} g4 {[%emt 0:01:06]} 48. Qe3 {[%emt 0:00:06]} Qf8 {[%emt 0:02:58]} 49. Qf2 {[%emt 0:01:02]} Kg5 {[%emt 0:00:06]} 50. Nxh4 {[%emt 0:00:30]} f5 {[%emt 0:00:03]} 51. Qg3 {[%emt 0:00:33]} Qe7 {[%emt 0:00:52]} 52. Nf3+ {[%emt 0:00:11]} Kh5 {[%emt 0:00:04]} 53. Qh2+ {[%emt 0:00:30]} Kg6 {[%emt 0:00:04]} 54. Ne5+ {[%emt 0:00:30]} Kg5 {[%emt 0:03:08]} 55. Qd2+ {[%emt 0:00:28]} f4 {[%emt 0:00:28]} 56. Qd5 {[%emt 0:00:02]} Qf6 {[%emt 0:01:05]} 57. Qg8+ {[%emt 0:00:28]} Kf5 {[%emt 0:00:36]} 58. Nxg4 {[%emt 0:00:06]} Qh4 {[%emt 0:00:36]} 59. Qc8+ {[%emt 0:00:41]} Kg5 {[%emt 0:00:07]} 60. Qg8+ {[%emt 0:01:18]} Kf5 {[%emt 0:00:04]} 61. Qc8+ {[%emt 0:00:38]} Kg5 {[%emt 0:00:04]} 62. Qg8+ {[%emt 0:00:39]} 1/2-1/2